bitfinex/quotes_ETHUSD_20260227
["timestamp","ask_amount","ask_price","bid_price","bid_amount"]
[1772171605870,0.49351197,2045.8,2045.5,0.0011]
[1772171606070,1.71553209,2045.8,2045.5,0.0011]
[1772171606278,0.49351197,2045.8,2045.5,0.07807475]
[1772171609503,1.71552829,2045.8,2045.5,0.07807475]
[1772171611899,0.49351197,2045.8,2045.5,0.07807475]
[1772171612124,1.71541865,2046.0,2045.6,0.07697475]
[1772171612281,1.71541865,2046.0,2045.7,0.0011]
[1772171612481,0.49451197,2045.8,2045.7,0.0011]
[1772171615002,1.7165278,2045.8,2045.7,0.0011]
[1772171615206,0.49351197,2045.7,2045.5,0.0011]
[1772171615921,1.71564728,2045.6,2045.5,0.0011]
[1772171616075,0.49351197,2045.6,2045.5,0.0011]
[1772171620008,1.71564728,2045.6,2045.5,0.0011]
[1772171621811,0.49351197,2045.6,2045.5,0.0011]
[1772171622191,1.71564728,2045.6,2045.5,0.0011]
[1772171622800,0.49351197,2045.6,2045.5,0.0011]
[1772171623004,1.71564728,2045.6,2045.5,0.0011]
[1772171624808,1.71664728,2045.6,2045.5,0.0011]
[1772171625195,0.49451197,2045.6,2045.5,0.0011]
[1772171625598,1.71664728,2045.6,2045.5,0.0011]
[1772171626107,0.49451197,2045.6,2045.5,0.0011]
[1772171626612,1.71664728,2045.6,2045.5,0.0011]
[1772171628010,0.48657679,2045.5,2045.3,0.0011]
[1772171628215,0.48657679,2045.5,2044.9,1.30172047]
[1772171629016,0.48657679,2045.5,2044.9,0.07917475]
[1772171629682,0.48657679,2045.3,2044.8,0.07917475]
[1772171629888,1.70895112,2045.2,2044.8,0.07917475]
[1772171630608,1.70893892,2045.3,2044.9,0.07917475]
[1772171634202,0.48657679,2045.2,2044.9,0.07917475]
[1772171635219,1.70895928,2045.2,2044.9,0.07917475]
[1772171635404,0.48657679,2045.2,2044.9,0.07917475]
[1772171636825,0.48657679,2045.2,2045.0,0.0011]
[1772171637027,0.001,2045.1,2045.0,0.0011]
[1772171638237,0.48757679,2045.1,2045.0,0.0011]
[1772171640310,0.001,2045.1,2045.0,0.0011]
[1772171643243,1.22315191,2045.6,2045.1,0.07817475]
[1772171643444,0.001,2045.6,2045.0,0.07927475]
[1772171643817,0.48757679,2045.6,2045.0,0.07927475]
[1772171644430,0.48757679,2045.6,2045.2,0.07817475]
[1772171645457,1.70972344,2045.6,2045.2,0.07817475]
[1772171645620,0.48657679,2045.5,2045.2,0.07817475]
[1772171649552,0.48657679,2045.5,2045.3,0.0011]
[1772171649753,0.001,2045.4,2045.3,0.0011]
[1772171653953,0.46091262,2045.2,2045.0,0.0011]
[1772171655953,1.68332597,2045.2,2045.0,0.0011]
[1772171662255,0.001,2045.1,2045.0,0.0011]
[1772171663760,0.46191262,2045.1,2045.0,0.0011]
[1772171667561,0.46036262,2045.0,2044.8,0.0011]
[1772171671464,0.46036262,2044.9,2044.8,0.0011]
[1772171673551,0.46036262,2044.9,2044.5,1.383]
[1772171673552,0.46036262,2044.8,2044.5,1.383]
[1772171674768,0.46036262,2044.8,2044.5,1.3841]
[1772171675258,0.46036262,2044.6,2044.5,0.0011]
[1772171675458,0.46036262,2044.6,2044.3,0.08037475]
[1772171678372,0.46036262,2044.6,2044.2,1.78185376]
[1772171681775,0.46602965,2044.5,2044.1,1.22300754]
[1772171681982,0.46602965,2044.5,2044.0,1.30341565]
[1772171682784,0.46602965,2044.5,2044.1,0.08037475]
[1772171684784,0.46602965,2044.5,2044.1,1.30337271]
[1772171686105,0.46602965,2044.4,2044.0,0.08037475]
[1772171686287,0.46602965,2044.4,2044.2,0.0011]
[1772171686987,1.68888949,2044.4,2044.2,0.0011]
[1772171687289,0.46602965,2044.4,2044.2,0.0011]
[1772171687458,1.68888412,2044.4,2044.2,0.0011]
[1772171687890,0.46602965,2044.4,2044.2,0.0011]
[1772171690189,0.001,2044.6,2044.2,0.08147475]
[1772171690490,0.001,2044.6,2044.3,0.08037475]
[1772171690983,0.001,2044.6,2044.5,0.08037475]
[1772171691186,0.46702965,2045.1,2044.5,0.07937475]
[1772171693064,0.001,2045.1,2044.7,0.07937475]
[1772171694489,0.46702965,2045.1,2044.6,1.22273305]
[1772171694692,0.46702965,2045.1,2044.6,1.3021078]
[1772171695063,0.46702965,2045.1,2044.7,0.07937475]
[1772171695794,0.46602965,2045.0,2044.5,0.07937475]
[1772171695996,0.46602965,2045.0,2044.4,0.07937475]
[1772171695997,0.46602965,2044.9,2044.4,0.07937475]
[1772171697789,0.46602965,2044.9,2044.4,1.30216905]
[1772171697997,0.46602965,2044.9,2044.5,0.07937475]
[1772171699504,0.001,2044.7,2044.5,0.07937475]
[1772171700001,0.001,2044.7,2044.6,1.22273305]
[1772171700190,0.46602965,2044.9,2044.6,1.22273305]
[1772171701004,0.46702965,2045.1,2044.7,0.07937475]
[1772171701297,0.46602965,2045.0,2044.6,1.22273305]
[1772171701498,0.46602965,2045.0,2044.5,1.22274895]
[1772171701686,0.46602965,2045.0,2044.6,0.07937475]
[1772171702094,0.46602965,2045.0,2044.6,1.30208051]
[1772171702400,0.001,2045.1,2044.7,0.07937475]
[1772171702601,0.46702965,2045.1,2044.7,0.07937475]
[1772171702985,0.001,2045.1,2044.7,0.07937475]
[1772171704375,0.46702965,2045.1,2044.8,0.07937475]
[1772171705199,0.46702965,2045.1,2044.7,1.30200327]
[1772171705788,0.46702965,2045.1,2044.7,0.07937475]
[1772171705996,0.46702965,2045.1,2044.6,1.30206991]
[1772171706805,0.46602965,2045.0,2044.6,1.30206991]
[1772171708206,0.46602965,2045.0,2044.7,0.07937475]
[1772171708407,0.46602965,2045.0,2044.6,1.22269516]
[1772171708709,0.46602965,2045.0,2044.6,0.07937475]
[1772171708904,0.001,2045.1,2044.6,0.07937475]
[1772171711304,0.47994421,2045.1,2044.8,0.07937475]
[1772171711507,0.47994421,2045.1,2044.7,1.22267325]
[1772171712007,0.47994421,2045.1,2044.8,0.0011]
[1772171712309,0.001,2044.9,2044.8,0.0011]
[1772171715523,0.47994421,2044.9,2044.8,0.0011]
[1772171716100,0.47994421,2044.9,2044.5,1.22388778]
[1772171716819,0.47994421,2044.9,2044.5,1.30436253]
[1772171717514,0.001,2044.9,2044.5,0.08157475]
[1772171717717,0.47894421,2044.8,2044.5,0.08157475]
[1772171719720,0.47894421,2044.8,2044.5,0.0011]
[1772171719937,0.47894421,2044.8,2044.5,1.22389076]
[1772171725027,0.001,2044.9,2044.6,0.08047475]
[1772171725724,0.001,2044.9,2044.7,0.0011]
[1772171726027,0.001,2044.9,2044.7,0.08157475]
[1772171727020,0.001,2044.9,2044.8,1.22261345]
[1772171728333,0.001,2044.9,2044.7,1.30420016]
[1772171728640,0.28732121,2045.0,2044.7,0.0011]
[1772171728802,0.001,2045.1,2044.7,0.0011]
[1772171728803,0.001,2045.1,2044.8,0.27109775]
[1772171729003,0.001,2045.1,2044.9,1.22255367]
[1772171729199,0.47994421,2045.4,2045.0,0.27109775]
[1772171731507,0.47994421,2045.4,2045.0,1.4935885]
[1772171732940,0.47994421,2045.4,2044.9,1.49359908]
[1772171733608,0.47994421,2045.4,2045.0,0.27109775]
[1772171736333,0.47994421,2045.4,2045.1,1.49353186]
[1772171737841,0.47994421,2045.4,2045.2,0.0011]
[1772171738825,0.001,2045.4,2045.2,0.27219775]
[1772171740023,0.47994421,2045.6,2045.3,0.27109775]
[1772171740232,0.47994421,2045.6,2045.2,0.0011]
[1772171740635,0.47994421,2045.6,2045.2,0.27219775]
[1772171742551,0.47994421,2045.6,2045.2,1.49453704]
[1772171742744,0.47994421,2045.6,2045.2,0.27219775]
[1772171743047,0.47994421,2045.6,2045.2,1.49456335]
[1772171745231,0.47994421,2045.6,2045.2,1.2234656]
[1772171745424,0.45238188,2045.5,2045.2,0.0011]
[1772171745636,0.45238188,2045.5,2045.2,1.22347158]
[1772171749048,0.45238188,2045.5,2045.2,0.0011]
[1772171749271,0.45238188,2045.4,2045.0,0.0011]
[1772171749956,0.45238188,2045.4,2045.2,0.0011]
[1772171750262,0.45338188,2045.3,2045.2,0.0011]
[1772171751148,1.67569645,2045.3,2045.2,0.0011]
[1772171752770,0.45338188,2045.3,2045.2,0.0011]
[1772171752969,1.67569645,2045.3,2045.2,0.0011]
[1772171756860,0.45238188,2045.2,2045.0,0.0011]
[1772171759470,0.45238188,2045.1,2045.0,0.0011]
[1772171760445,0.45238188,2045.0,2044.7,0.0011]
[1772171761156,0.45238188,2044.9,2044.7,0.0011]
[1772171763870,1.67495046,2044.9,2044.7,0.0011]
[1772171764065,0.45238188,2044.9,2044.7,0.0011]
[1772171765439,0.45238188,2044.9,2044.4,1.3991]
[1772171765440,0.45238188,2044.8,2044.4,1.3991]
[1772171765746,0.45238188,2044.8,2044.2,1.22403362]
[1772171765747,0.45238188,2044.6,2044.2,0.0011]
[1772171765942,0.45238188,2044.4,2044.2,0.0011]
[1772171767843,0.45238188,2044.4,2043.9,1.80551883]
[1772171768167,0.45238188,2044.3,2043.9,1.80555006]
[1772171768540,0.45238188,2044.3,2043.9,1.32704443]
[1772171768960,0.45238188,2044.3,2043.8,1.22318345]
[1772171769166,0.45238188,2044.3,2043.8,1.32708345]
[1772171771857,1.67529591,2044.3,2043.8,1.32708345]
[1772171772056,0.46835994,2044.2,2043.8,1.32708345]
[1772171774577,0.46835994,2044.4,2044.0,0.105]
[1772171775362,0.46835994,2044.4,2044.0,1.32808753]
[1772171777574,2.1696399,2044.6,2044.2,0.1039]
[1772171777759,2.1696399,2044.6,2044.1,1.22301284]
[1772171777760,0.46835994,2044.5,2044.1,1.22301284]
[1772171778162,0.46835994,2044.5,2044.1,1.32691284]
[1772171778878,0.46835994,2044.5,2044.2,0.1039]
[1772171781182,1.69115603,2044.5,2044.2,0.1039]
[1772171781882,1.69115603,2044.5,2044.1,0.1039]
[1772171782065,0.46835994,2044.4,2044.1,0.1039]
[1772171787085,0.46835994,2044.4,2044.3,0.0011]
[1772171788164,0.46835994,2044.3,2044.0,0.0011]
[1772171789371,1.69127474,2044.3,2044.0,0.0011]
[1772171789800,0.46835994,2044.3,2044.0,0.1061]
[1772171792070,1.69127515,2044.3,2044.0,0.1061]
[1772171792269,0.46835994,2044.2,2044.0,0.0011]
[1772171797607,1.69133576,2044.2,2044.0,0.0011]
[1772171798408,0.46835994,2044.2,2044.0,0.0011]
[1772171799096,0.001,2044.1,2044.0,0.0011]
[1772171802881,0.001,2044.1,2044.0,0.1061]
[1772171803205,0.001,2044.1,2044.0,0.0011]
[1772171803506,0.46519758,2044.1,2043.8,0.0011]
[1772171803712,0.46419758,2043.8,2043.5,0.0011]
[1772171807908,0.46419758,2043.8,2043.5,0.1072]
[1772171808284,0.46419758,2043.8,2043.5,0.0011]
[1772171808482,0.46419758,2043.8,2043.5,0.1072]
[1772171810114,0.46419758,2043.8,2043.5,1.33058814]
[1772171810286,0.46419758,2043.8,2043.5,0.1072]
[1772171810683,0.46419758,2043.8,2043.7,0.0011]
[1772171819621,0.001,2044.1,2043.8,0.1061]
[1772171819828,0.46519758,2044.1,2043.8,0.1061]
[1772171820628,0.46419758,2044.3,2043.7,0.0011]
[1772171820796,0.46419758,2044.2,2043.7,0.0011]
[1772171822208,0.46419758,2044.0,2043.7,0.0011]
[1772171823217,0.46519758,2044.0,2043.7,0.0011]
[1772171827829,0.46419758,2044.3,2043.8,0.1051]
[1772171829232,0.46419758,2044.2,2043.7,0.0011]
[1772171829527,0.46419758,2044.2,2043.7,0.1062]
[1772171830426,0.46419758,2044.2,2043.7,0.0011]
[1772171831227,0.49575562,2044.0,2043.7,0.0011]
[1772171831432,0.49575562,2044.0,2043.7,0.1062]
[1772171834222,1.71885827,2044.0,2043.7,0.1062]
[1772171834624,0.49575562,2043.9,2043.7,0.0011]
[1772171835021,0.49675562,2043.9,2043.7,0.0011]
[1772171835608,0.001,2043.9,2043.7,0.1062]
[1772171842951,0.001,2043.9,2043.7,0.0011]
[1772171843447,0.49675562,2043.9,2043.7,0.0011]
[1772171843623,0.49575562,2043.7,2043.5,0.0011]
[1772171843825,0.49575562,2043.7,2043.2,0.0011]
[1772171845952,0.49575562,2043.5,2043.2,0.0011]
[1772171846749,0.49575562,2043.5,2043.4,0.0011]
[1772171847061,0.49575562,2043.5,2043.2,0.0011]
[1772171848438,0.49575562,2043.3,2043.2,0.0011]
[1772171850134,0.49575562,2043.3,2042.9,0.0011]
[1772171850370,0.49575562,2043.1,2042.9,0.0011]
[1772171852842,0.49575562,2043.5,2042.9,0.1084]
[1772171853160,0.49575562,2043.5,2043.0,0.1073]
[1772171853357,0.49575562,2043.5,2043.2,0.1073]
[1772171853539,0.001,2043.8,2043.4,0.1073]
[1772171853743,0.001,2043.9,2043.7,0.1073]
[1772171854836,0.001,2043.9,2043.7,1.33056161]
[1772171855157,0.001,2043.9,2043.6,0.71910881]
[1772171855158,0.001,2043.9,2043.6,0.1073]
[1772171856156,0.49675562,2043.9,2043.5,1.94246829]
[1772171856363,0.49675562,2043.9,2043.4,4.89369607]
[1772171856364,0.49675562,2043.9,2043.4,1.33070309]
[1772171856761,0.49575562,2043.7,2043.2,1.22353669]
[1772171856942,0.49575562,2043.7,2043.1,1.94269231]
[1772171857259,0.49575562,2043.7,2043.1,1.2235835]
[1772171857443,0.49575562,2043.7,2043.0,1.33095592]
[1772171858742,0.49575562,2043.7,2043.1,0.1084]
[1772171858961,0.49575562,2043.5,2043.1,1.33202647]
[1772171859867,0.49575562,2043.5,2043.1,0.0011]
[1772171860463,0.49575562,2043.5,2043.1,0.1084]
[1772171861149,0.47896377,2043.4,2043.1,0.1084]
[1772171863178,1.70241631,2043.4,2043.1,0.0011]
[1772171863354,0.47896377,2043.3,2043.1,0.0011]
[1772171864367,0.47896377,2043.5,2043.1,0.1084]
[1772171864564,0.47996377,2043.7,2043.1,0.82750881]
[1772171864746,0.47996377,2043.7,2043.2,0.1073]
[1772171864947,0.47896377,2043.4,2043.1,0.0011]
[1772171865147,0.47896377,2043.2,2042.9,0.0011]
[1772171865381,0.47896377,2043.2,2042.9,0.1095]
[1772171866318,0.47896377,2043.2,2042.9,0.0011]
[1772171867162,1.22357315,2043.2,2042.9,0.0011]
[1772171867483,0.47896377,2043.2,2042.9,0.0011]
[1772171869157,0.47896377,2043.0,2042.9,0.0011]
[1772171870487,1.70257905,2043.2,2042.9,0.0011]
[1772171870688,0.47896377,2043.1,2042.9,0.0011]
[1772171872057,1.70263195,2043.1,2042.9,0.0011]
[1772171872258,0.47896377,2043.0,2042.6,0.0011]
[1772171874285,0.47896377,2042.9,2042.6,0.0011]
[1772171875584,0.47896377,2042.9,2042.6,0.1095]
[1772171876583,0.47896377,2042.8,2042.6,0.0011]
[1772171879183,0.47896377,2043.0,2042.7,0.1084]
[1772171879389,0.47896377,2043.2,2042.7,0.1084]
[1772171880476,0.47896377,2043.2,2042.6,0.0011]
[1772171880679,0.47896377,2042.6,2042.0,0.1084]
[1772171881073,0.47896377,2042.6,2042.1,1.33262995]
[1772171881279,0.47896377,2042.6,2042.2,0.1084]
[1772171881807,0.47896377,2043.0,2042.4,0.1084]
[1772171882007,0.47896377,2042.9,2042.4,0.1084]
[1772171882582,0.47896377,2042.9,2042.4,0.1095]
[1772171883199,0.47896377,2042.9,2042.4,1.33350197]
[1772171883814,0.47896377,2042.9,2042.6,0.1084]
[1772171885116,0.47896377,2042.9,2042.6,1.33229035]
[1772171885721,0.47996377,2043.0,2042.6,1.33229035]
[1772171885895,0.47996377,2043.0,2042.7,0.1084]
[1772171886291,0.001,2043.0,2042.7,0.1084]
[1772171887103,0.001,2043.0,2042.8,0.1084]
[1772171887817,0.001,2043.0,2042.8,1.33219789]
[1772171888613,0.47896377,2043.4,2043.0,0.1084]
[1772171889413,0.47896377,2043.4,2043.0,1.33208345]
[1772171890321,0.47896377,2043.4,2043.0,0.1084]
[1772171890535,0.4777143,2043.3,2042.6,4.89562607]
[1772171890813,0.4777143,2043.3,2042.7,0.1084]
[1772171891597,1.7012355,2043.3,2042.8,1.33221045]
[1772171892014,0.4777143,2043.2,2042.8,1.33221045]
[1772171892521,0.4777143,2043.2,2042.9,0.1084]
[1772171893889,0.4777143,2043.4,2042.9,1.33213614]
[1772171895225,1.70208368,2043.6,2043.1,0.1084]
[1772171896213,0.001,2043.6,2043.4,0.58815728]
[1772171896723,0.001,2043.6,2043.4,0.1084]
[1772171898021,0.001,2043.6,2043.2,1.81168094]
[1772171898726,0.001,2043.9,2043.5,0.1084]
[1772171898894,0.4787143,2043.9,2043.6,0.47975728]
[1772171899630,0.001,2043.9,2043.6,0.58815728]
[1772171899831,0.001,2043.9,2043.7,0.1084]
[1772171900815,0.001,2043.9,2043.6,0.58815728]
[1772171901622,0.4787143,2043.9,2043.6,0.47975728]
[1772171902210,0.4787143,2043.9,2043.5,0.1084]
[1772171902409,1.70092596,2043.8,2043.4,0.47975728]
[1772171902810,1.22419991,2043.9,2043.4,0.47975728]
[1772171903140,0.4787143,2043.9,2043.6,0.47975728]
[1772171903435,0.4777143,2044.3,2043.8,0.58815728]
[1772171903606,0.4777143,2044.2,2043.8,0.58815728]
[1772171904713,0.4777143,2044.2,2043.8,1.8113144]
[1772171905849,1.22289056,2044.4,2043.8,1.8113144]
[1772171905850,0.4777143,2044.4,2044.0,0.47975728]
[1772171906948,0.4777143,2044.4,2043.9,1.33150549]
[1772171907149,0.4777143,2043.9,2043.3,1.5274]
[1772171907441,0.42723703,2043.9,2043.4,0.63863455]
[1772171907831,0.42723703,2043.9,2043.6,0.0011]
[1772171910317,1.6503917,2043.9,2043.6,0.0011]
[1772171910631,0.4777143,2043.8,2043.6,0.0011]
[1772171911233,0.4777143,2043.8,2043.4,0.0011]
[1772171911545,0.4777143,2043.7,2043.4,0.0011]
[1772171912815,1.22325265,2043.8,2043.4,0.16107727]
[1772171913215,1.70090866,2043.9,2043.4,0.16107727]
[1772171914046,0.4777143,2043.8,2043.4,0.16107727]
[1772171914747,0.4777143,2043.8,2043.4,1.38452366]
[1772171915040,0.4777143,2043.8,2043.4,0.16107727]
[1772171916247,1.70092709,2043.8,2043.4,0.16107727]
[1772171920447,1.70092709,2043.8,2043.6,0.0011]
[1772171920849,0.47885404,2043.7,2043.6,0.0011]
[1772171923437,0.47885404,2043.7,2043.4,0.0011]
[1772171923438,0.47885404,2043.6,2043.4,0.0011]
[1772171925220,0.47885404,2043.6,2043.1,0.0011]
[1772171925652,0.47885404,2043.4,2043.1,0.0011]
[1772171927527,0.47885404,2043.3,2043.1,0.0011]
[1772171933251,1.22345524,2043.4,2043.1,0.16217727]
[1772171933454,1.70327461,2043.5,2043.1,0.16217727]
[1772171933656,0.47985404,2043.5,2043.1,0.16217727]
[1772171933843,0.001,2043.5,2043.1,0.16217727]
[1772171934247,0.001,2043.5,2043.3,0.16107727]
[1772171936059,1.70204643,2043.9,2043.3,0.16007727]
[1772171936258,0.47885404,2043.8,2043.3,1.22349934]
[1772171936562,0.47885404,2043.8,2043.4,0.16007727]
[1772171937058,0.17354626,2043.8,2043.4,0.16007727]
[1772171938356,1.70212555,2043.7,2043.4,0.16007727]
[1772171938660,0.47885404,2043.6,2043.2,0.46538505]
[1772171938960,0.47885404,2043.6,2043.3,0.46538505]
[1772171939162,0.47885404,2043.7,2043.3,0.46538505]
[1772171939962,0.47885404,2043.8,2043.3,0.46538505]
[1772171941041,0.47885404,2043.7,2043.4,0.46538505]
[1772171942038,0.47885404,2043.7,2043.3,0.46538505]
[1772171942560,0.47885404,2043.7,2043.2,0.46538505]
[1772171943041,0.47885404,2043.7,2043.1,0.46648505]
[1772171943235,1.22333137,2043.6,2043.1,0.46648505]
[1772171943449,0.47885404,2043.5,2043.1,0.46648505]
[1772171944936,0.47885404,2043.5,2043.3,0.0011]
[1772171945137,0.47985404,2043.5,2043.3,0.0011]
[1772171946572,0.001,2043.5,2043.3,0.46648505]
[1772171946871,0.47885404,2043.7,2043.4,0.46538505]
[1772171947047,1.22325246,2043.8,2042.7,0.46538505]
[1772171947048,0.47885404,2043.5,2042.7,0.46538505]
[1772171947251,0.47885404,2043.5,2042.8,0.46538505]
[1772171948457,0.47885404,2043.3,2042.5,1.94334022]
[1772171948656,0.47885404,2043.3,2042.6,0.46538505]
[1772171955760,1.22357086,2043.2,2042.8,0.46538505]
[1772171957390,1.71728438,2043.2,2043.0,0.0011]
[1772171958081,0.49371352,2043.1,2042.8,0.0011]
[1772171960389,1.71740417,2043.0,2042.8,0.0011]
[1772171961565,1.7172902,2043.2,2042.8,0.46648505]
[1772171963388,0.49371352,2043.1,2042.8,0.46648505]
[1772171965794,1.71735311,2043.1,2042.8,0.46648505]
[1772171965989,0.49371352,2043.1,2042.8,0.46648505]
[1772171967691,1.71729299,2043.2,2042.8,0.46648505]
[1772171969996,1.71729299,2043.2,2043.0,0.0011]
[1772171971800,1.71710476,2043.5,2043.0,0.46648505]
[1772171972005,0.49371352,2043.4,2043.0,0.46648505]
[1772171972206,0.49371352,2043.4,2043.0,0.0011]
[1772171974600,1.71808999,2043.6,2043.1,0.46538505]
[1772171975096,0.001,2043.6,2043.3,0.46538505]
[1772171975482,1.22317973,2043.9,2043.5,0.46538505]
[1772171975677,1.71689325,2043.9,2043.5,0.46538505]
[1772171975875,0.49371352,2043.8,2043.3,0.46438505]
[1772171976597,1.71694531,2043.8,2043.3,1.68788672]
[1772171976801,1.71694531,2043.8,2043.4,0.46438505]
[1772171977095,0.49371352,2043.8,2043.4,0.46438505]
[1772171977399,1.71692596,2043.8,2043.4,0.46438505]
[1772171977575,0.49371352,2043.8,2043.4,0.46438505]
[1772171978185,1.22409456,2044.0,2043.7,0.46438505]
[1772171978579,1.71780808,2044.0,2043.7,0.46438505]
[1772171981097,0.001,2044.0,2043.7,0.46438505]
[1772171981296,0.4893204,2044.0,2043.6,1.22329862]
[1772171981606,0.4893204,2044.0,2043.5,1.68773]
[1772171981806,0.4893204,2044.0,2043.6,0.46438505]
[1772171982289,0.4883204,2043.9,2043.4,2.40719075]
[1772171982496,0.4883204,2043.9,2043.5,2.61291105]
[1772171982797,0.001,2043.8,2043.5,0.46438505]
[1772171983810,0.001,2043.8,2043.5,1.68773736]
[1772171984196,0.001,2043.8,2043.6,0.46438505]
[1772171986316,0.4883204,2043.7,2043.2,0.0011]
[1772171986812,0.4883204,2043.7,2043.2,0.46548505]
[1772171988414,1.22333137,2043.6,2043.2,0.46548505]
[1772171988617,1.71165177,2043.6,2043.2,0.46548505]
[1772171988916,0.4883204,2043.5,2043.2,0.0011]
[1772171989704,4.8943255,2043.8,2043.4,0.46438505]
[1772171989705,1.71254117,2043.8,2043.4,0.46438505]
[1772171989897,0.4883204,2043.7,2043.4,0.46438505]
[1772171990495,0.4883204,2043.6,2043.2,1.68905099]
[1772171990700,0.4883204,2043.6,2043.2,0.46548505]
[1772171991312,0.4883204,2043.6,2043.3,0.46438505]
[1772171993392,0.001,2043.8,2043.5,0.46438505]
[1772171993592,1.22409532,2044.0,2043.5,0.94382777]
[1772171993797,0.4883204,2043.9,2043.5,0.94382777]
[1772171994194,0.4883204,2043.9,2043.5,0.47944272]
[1772171994702,0.4883204,2043.8,2043.5,0.47944272]
[1772171995303,0.001,2043.7,2043.5,0.47944272]
[1772171996818,0.001,2043.7,2043.5,0.94382777]
[1772171997017,0.001,2043.7,2043.6,0.46438505]
[1772171997228,0.4893204,2044.0,2043.6,0.46438505]
[1772171997409,1.71241762,2044.0,2043.6,0.46438505]
[1772171997822,0.4883204,2043.9,2043.6,0.46438505]
[1772171999518,0.4893204,2044.0,2043.7,0.46338505]
[1772171999724,0.4883204,2043.9,2043.5,0.94282777]
[1772172001827,0.4883204,2043.9,2043.6,0.46338505]
[1772172002141,0.001,2044.0,2043.8,0.46338505]
[1772172002314,0.001,2044.0,2043.7,0.47944272]
[1772172002514,0.4883204,2043.9,2043.6,0.46338505]
[1772172002715,0.4883204,2043.9,2043.5,0.47944272]
[1772172002910,0.4883204,2043.9,2043.4,0.46448505]
[1772172003944,0.4883204,2043.8,2043.4,1.68791517]
[1772172005948,0.4893204,2044.0,2043.6,1.68671642]
[1772172006148,0.4893204,2044.0,2043.6,1.22333137]
[1772172006356,0.4893204,2044.0,2043.7,0.46338505]
[1772172006652,0.4883204,2043.9,2043.4,0.0011]
[1772172008059,1.22321166,2043.8,2043.6,0.0011]
[1772172008243,0.001,2043.7,2043.6,0.0011]
[1772172008821,0.4893204,2043.7,2043.6,0.0011]
[1772172009561,0.4883204,2043.9,2043.6,0.46448505]
[1772172009726,1.22413134,2044.0,2043.6,0.46448505]
[1772172009727,0.001,2044.0,2043.8,0.46338505]
[1772172010457,0.001,2044.0,2043.7,1.70266912]
[1772172011033,0.45435649,2044.0,2043.7,1.70266912]
[1772172012528,0.45435649,2044.0,2043.7,0.47944272]
[1772172013063,0.45335649,2043.9,2043.6,0.46448505]
[1772172013365,0.45335649,2043.9,2043.6,0.0011]
[1772172014861,0.45335649,2043.7,2043.6,0.0011]
[1772172021072,0.45435649,2043.7,2043.6,0.0011]
[1772172021843,0.001,2043.7,2043.6,0.0011]
[1772172022050,1.22427151,2043.7,2043.6,0.0011]
[1772172022250,1.677628,2043.7,2043.6,0.0011]
[1772172022589,0.45435649,2043.7,2043.6,0.0011]
[1772172025578,0.001,2043.7,2043.6,0.0011]
[1772172029380,0.45435649,2043.7,2043.6,0.0011]
[1772172032387,1.677628,2043.7,2043.6,0.0011]
[1772172042196,0.46064785,2043.9,2043.6,0.46448505]
[1772172042371,1.22410356,2044.0,2043.6,0.46448505]
[1772172042893,0.001,2044.0,2043.8,0.46338505]
[1772172043093,1.68342711,2044.6,2044.0,0.46238505]
[1772172043272,0.46064785,2044.5,2043.8,0.46238505]
[1772172044579,1.68350052,2044.4,2044.0,0.46238505]
[1772172047183,1.6833809,2044.6,2044.0,0.46238505]
[1772172047383,0.46064785,2044.5,2044.0,0.46238505]
[1772172048095,0.46064785,2044.5,2044.1,0.46238505]
[1772172048284,1.6833809,2044.6,2044.1,0.46238505]
[1772172048603,0.46064785,2044.4,2043.8,0.0011]
[1772172048771,0.47944272,2043.9,2043.6,0.0011]
[1772172048975,0.47944272,2044.1,2043.6,0.0011]
[1772172048976,0.46064785,2043.8,2043.6,0.0011]
[1772172049274,1.22327151,2043.7,2043.6,0.0011]
[1772172049693,1.68391936,2043.7,2043.6,0.0011]
[1772172050989,1.22326004,2043.8,2043.6,0.0011]
[1772172051705,0.46064785,2043.7,2043.6,0.0011]
[1772172054308,0.46064785,2043.9,2043.6,0.0011]
[1772172056702,1.68385951,2043.8,2043.6,0.0011]
[1772172058812,0.46064785,2043.7,2043.6,0.0011]
[1772172061010,0.46064785,2043.9,2043.6,0.0011]
[1772172064531,4.89229753,2044.1,2043.6,0.46458505]
[1772172064809,0.46064785,2043.9,2043.6,0.0011]
[1772172066691,0.46064785,2043.7,2043.6,0.0011]
[1772172068890,1.68391936,2043.7,2043.6,0.0011]
[1772172069519,1.22327151,2043.7,2043.6,0.0011]
[1772172069816,1.68391113,2043.8,2043.6,0.0011]
[1772172070021,0.001,2043.7,2043.6,0.0011]
[1772172070514,0.001,2043.7,2043.6,0.46458505]
[1772172071017,0.001,2043.7,2043.6,0.0011]
[1772172079104,1.22427151,2043.7,2043.6,0.0011]
[1772172079732,0.46209718,2043.6,2043.3,0.0011]
[1772172079901,0.46209718,2043.6,2043.1,0.0011]
[1772172080105,7.1906516,2043.2,2041.3,10.20076256]
[1772172080322,0.46209718,2042.4,2041.5,0.46458505]
[1772172080650,0.46209718,2042.9,2042.0,0.46458505]
[1772172081148,2.33404631,2042.3,2041.9,4.25019]
[1772172081313,3.50106947,2042.4,2041.6,1.94354371]
[1772172081314,5.2516042,2042.2,2041.6,1.94354371]
[1772172081502,2.91755789,2042.1,2041.7,0.0011]
[1772172081702,2.91755789,2042.0,2041.7,0.0011]
[1772172081913,2.91755789,2041.9,2041.7,0.0011]
[1772172082119,2.33404631,2042.2,2041.7,0.0011]
[1772172082334,2.90647995,2042.1,2041.7,0.0011]
[1772172082520,2.90647995,2042.0,2041.7,0.0011]
[1772172082720,2.33404631,2042.3,2041.7,0.0011]
[1772172083041,2.90632249,2042.2,2041.7,0.0011]
[1772172083234,2.33404631,2042.3,2041.7,0.0011]
[1772172083235,2.90632249,2042.1,2041.7,0.0011]
[1772172083437,2.90632249,2042.0,2041.7,0.0011]
[1772172083631,1.22415095,2042.3,2041.7,0.0011]
[1772172083811,2.9033527,2042.2,2041.7,0.0011]
[1772172084012,2.9033527,2042.1,2041.7,0.0011]
[1772172084348,1.22415095,2042.3,2041.7,0.0011]
[1772172084521,2.90090382,2042.2,2041.7,0.0011]
[1772172084840,2.90090382,2042.1,2041.7,0.0011]
[1772172085042,1.72415095,2042.3,2041.7,0.0011]
[1772172085233,2.90094739,2042.2,2041.7,0.0011]
[1772172085541,2.90094739,2042.1,2041.7,0.0011]
[1772172085712,1.72415095,2042.3,2041.7,0.0011]
[1772172086040,2.89928652,2042.2,2041.7,0.0011]
[1772172086335,2.89928652,2042.1,2041.7,0.0011]